bitfinex-derivatives/quotes_BTCF0:USTF0_20241224
["timestamp","ask_amount","ask_price","bid_price","bid_amount"]
[1735062135053,0.09068147,98570.0,98559.0,0.52068967]
[1735062135242,0.12103818,98575.0,98574.0,0.050756]
[1735062135442,0.12103818,98575.0,98574.0,0.411556]
[1735062135943,0.15123458,98582.0,98574.0,0.711556]
[1735062136255,0.05074,98605.0,98581.0,0.411552]
[1735062136454,0.15172355,98604.0,98603.0,0.050741]
[1735062137157,0.20246355,98604.0,98603.0,0.050741]
[1735062137656,0.05074,98604.0,98603.0,0.050741]
[1735062137956,0.050737,98610.0,98607.0,0.050739]
[1735062138156,0.411538,98608.0,98607.0,0.050739]
[1735062138759,0.411538,98608.0,98598.0,0.050743]
[1735062138760,0.3608,98608.0,98598.0,0.050743]
[1735062139054,0.050746,98593.0,98592.0,0.24295123]
[1735062139256,0.3608,98593.0,98589.0,0.24295123]
[1735062139563,1.550748,98590.0,98589.0,0.24295123]
[1735062140757,1.5,98590.0,98582.0,0.050751]
[1735062140959,0.3608,98583.0,98582.0,0.050751]
[1735062142158,0.3608,98583.0,98582.0,0.051751]
[1735062142662,0.1595,98592.0,98591.0,0.050747]
[1735062143159,0.5203,98592.0,98591.0,0.050747]
[1735062143954,0.5213,98592.0,98591.0,0.050747]
[1735062144553,0.5243,98592.0,98591.0,0.050747]
[1735062145159,0.1635,98592.0,98591.0,0.050747]
[1735062145661,0.5243,98592.0,98591.0,0.050747]
[1735062146558,0.004,98592.0,98591.0,0.050747]
[1735062147962,0.004,98592.0,98591.0,0.124247]
[1735062148256,0.001,98592.0,98591.0,0.124247]
[1735062148660,0.001,98592.0,98591.0,0.126247]
[1735062149248,0.050738,98609.0,98608.0,0.050738]
[1735062150355,1.550737,98612.0,98611.0,0.050737]
[1735062150667,0.06196458,98612.0,98611.0,0.050737]
[1735062151555,1.5773,98614.0,98608.0,0.001]
[1735062151763,0.0773,98614.0,98613.0,0.050736]
[1735062152560,0.003,98612.0,98611.0,0.051737]
[1735062153153,0.004,98614.0,98613.0,0.050736]
[1735062153962,0.0718,98631.0,98630.0,0.050727]
[1735062154867,0.18156747,98646.0,98624.0,0.41153]
[1735062155164,0.050722,98639.0,98636.0,0.050724]
[1735062155367,0.050723,98638.0,98636.0,0.050724]
[1735062155566,0.050726,98632.0,98630.0,0.001]
[1735062155753,0.050726,98632.0,98615.0,0.050735]
[1735062155754,0.050734,98617.0,98615.0,0.050735]
[1735062155958,0.146,98616.0,98615.0,0.050735]
[1735062157963,0.0706,98616.0,98615.0,0.050735]
[1735062158271,0.050716,98651.0,98642.0,0.050721]
[1735062158574,0.050716,98651.0,98637.0,0.3608]
[1735062158575,1.5,98643.0,98637.0,0.3608]
[1735062158957,0.18156747,98646.0,98637.0,0.3608]
[1735062159157,0.18156747,98646.0,98645.0,0.050719]
[1735062159567,0.01096954,98648.0,98637.0,0.3608]
[1735062159869,1.5769,98652.0,98648.0,0.050717]
[1735062160461,0.3608,98655.0,98654.0,0.050715]
[1735062161566,0.009,98655.0,98654.0,0.051715]
[1735062162668,0.013,98655.0,98654.0,0.051715]
[1735062163059,0.013,98655.0,98654.0,0.001]
[1735062163060,0.3718,98655.0,98654.0,0.001]
[1735062163265,0.418514,98655.0,98654.0,0.001]
[1735062163469,0.422514,98655.0,98654.0,0.001]
[1735062163854,1.8718,98655.0,98643.0,0.05072]
[1735062164165,0.3608,98644.0,98643.0,0.05072]
[1735062165669,0.3638,98644.0,98643.0,0.05072]
[1735062166669,0.05072,98643.0,98638.0,0.050723]
[1735062167066,0.3708,98644.0,98630.0,0.050727]
[1735062167275,0.050728,98629.0,98625.0,0.050729]
[1735062167566,0.050728,98628.0,98615.0,0.050734]
[1735062167760,0.122228,98628.0,98608.0,0.01090494]
[1735062167959,0.122228,98628.0,98606.0,0.073]
[1735062168367,0.122228,98628.0,98627.0,0.050728]
[1735062168970,1.622228,98628.0,98627.0,0.050728]
[1735062170072,1.623228,98628.0,98627.0,0.050728]
[1735062170471,1.623228,98628.0,98627.0,0.051728]
[1735062170472,1.5785,98628.0,98627.0,0.051728]
[1735062170772,1.507,98628.0,98627.0,0.051728]
[1735062170969,0.01,98628.0,98627.0,0.051728]
[1735062172062,0.02111496,98628.0,98627.0,0.051728]
[1735062172267,0.01,98628.0,98627.0,0.051728]
[1735062172469,0.007,98628.0,98627.0,0.051728]
[1735062172769,0.41151,98663.0,98627.0,0.050728]
[1735062172957,0.050711,98662.0,98659.0,0.050712]
[1735062173158,0.050711,98662.0,98651.0,0.050716]
[1735062173365,0.050711,98662.0,98650.0,0.479415]
[1735062173366,0.050711,98662.0,98658.0,0.050712]
[1735062173576,0.37198576,98663.0,98662.0,0.05071]
[1735062173870,0.37198576,98663.0,98650.0,0.479415]
[1735062174075,0.37198576,98663.0,98662.0,0.050706]
[1735062174975,0.37598576,98663.0,98662.0,0.050706]
[1735062177081,0.37598576,98663.0,98662.0,0.051706]
[1735062177277,0.37598576,98663.0,98662.0,0.052706]
[1735062177663,0.01518576,98663.0,98662.0,0.052706]
[1735062177984,0.3608,98695.0,98678.0,0.050698]
[1735062178276,0.050695,98684.0,98679.0,0.050698]
[1735062178666,0.0507,98675.0,98672.0,0.3608]
[1735062179062,0.050698,98679.0,98678.0,0.001]
[1735062179272,0.050698,98679.0,98678.0,0.002]
[1735062179666,0.050698,98679.0,98678.0,0.001]
[1735062180370,0.052698,98679.0,98678.0,0.002]
[1735062180573,0.052698,98679.0,98678.0,0.001]
[1735062180969,0.352698,98679.0,98651.0,0.3608]
[1735062181168,0.050714,98650.0,98647.0,0.050716]
[1735062181371,0.3608,98654.0,98648.0,0.050715]
[1735062181571,0.0704,98649.0,98648.0,0.050715]
[1735062182082,0.3608,98654.0,98653.0,0.050713]
[1735062182879,1.5,98654.0,98653.0,0.050713]
[1735062183276,0.1447,98664.0,98650.0,0.3608]
[1735062183478,0.08144835,98664.0,98663.0,0.411507]
[1735062183968,0.01104835,98664.0,98663.0,0.411507]
[1735062184174,0.15135068,98667.0,98666.0,0.050706]
[1735062184374,0.15135068,98683.0,98666.0,0.050706]
[1735062184573,1.65135068,98683.0,98682.0,0.050698]
[1735062184776,0.15135068,98683.0,98682.0,0.050698]
[1735062185482,0.01095767,98683.0,98682.0,0.050698]
[1735062185784,0.0728,98687.0,98685.0,0.050696]
[1735062186081,0.08362608,98687.0,98686.0,0.050696]
[1735062186869,0.01082608,98687.0,98686.0,0.050696]
[1735062187073,1.8608,98689.0,98688.0,0.050695]
[1735062188169,1.8618,98689.0,98688.0,0.050695]
[1735062188376,1.501,98689.0,98688.0,0.050695]
[1735062188885,1.504,98689.0,98688.0,0.051695]
[1735062189183,0.004,98689.0,98688.0,0.051695]
[1735062200296,0.054694,98689.0,98688.0,0.001]
[1735062200485,0.10532892,98689.0,98679.0,0.118615]
[1735062200686,0.004,98689.0,98685.0,0.050696]
[1735062200886,1.5,98688.0,98687.0,0.050695]
[1735062201100,1.5,98688.0,98673.0,0.3608]
[1735062201101,1.5,98688.0,98683.0,0.411497]
[1735062201290,1.5,98688.0,98683.0,0.3608]
[1735062201491,1.5,98688.0,98684.0,0.050696]
[1735062202494,1.503,98688.0,98687.0,0.001]
[1735062202887,1.503,98688.0,98684.0,0.050696]
[1735062203088,1.503,98688.0,98684.0,0.051696]
[1735062203606,1.504,98688.0,98687.0,0.001]
[1735062203985,0.004,98688.0,98687.0,0.001]
[1735062204595,0.004,98688.0,98687.0,0.051695]
[1735062204991,0.001,98688.0,98687.0,0.050695]
[1735062205193,0.005,98688.0,98687.0,0.050695]
[1735062205600,0.005,98688.0,98687.0,0.051695]
[1735062205601,0.001,98688.0,98687.0,0.051695]
[1735062205903,0.005,98688.0,98687.0,0.051695]
[1735062206201,0.055695,98688.0,98687.0,0.001]
[1735062207503,0.005,98688.0,98687.0,0.051695]
[1735062207996,0.18162733,98708.0,98699.0,0.050689]
[1735062208206,0.18162733,98708.0,98707.0,0.411485]
[1735062208398,0.01094549,98721.0,98707.0,0.3608]
[1735062208694,0.18186871,98712.0,98711.0,0.050683]
[1735062209298,0.21189855,98732.0,98731.0,0.050673]
[1735062210205,0.01071907,98733.0,98731.0,0.050673]
[1735062210403,1.5,98738.0,98725.0,0.3608]
[1735062210705,1.5,98738.0,98736.0,0.05067]
[1735062211202,0.01051304,98738.0,98736.0,0.05067]
[1735062211405,0.411465,98745.0,98738.0,0.050669]
[1735062211593,0.3608,98745.0,98744.0,0.050666]
[1735062211790,1.8608,98753.0,98733.0,0.3608]
[1735062212005,1.9219837,98753.0,98744.0,0.050666]
[1735062212196,0.050662,98752.0,98744.0,0.050666]
[1735062212502,0.050662,98751.0,98744.0,0.050666]
[1735062212905,1.8713227,98753.0,98743.0,0.3608]
[1735062213106,1.8713227,98753.0,98744.0,0.009]
[1735062213306,1.5105227,98753.0,98749.0,0.050663]
[1735062214006,1.5105227,98753.0,98744.0,0.014]
[1735062214198,1.5105227,98753.0,98750.0,0.050662]
[1735062214701,1.5105227,98753.0,98744.0,0.009]
[1735062214901,1.5105227,98753.0,98752.0,0.050662]
[1735062216307,1.5105227,98753.0,98752.0,0.059662]
[1735062217607,1.5105227,98753.0,98752.0,0.064662]
[1735062217997,0.0105227,98753.0,98752.0,0.064662]
[1735062218307,0.41145,98775.0,98754.0,0.050661]
[1735062218506,1.5,98774.0,98766.0,0.050655]
[1735062218799,1.5,98774.0,98761.0,0.3608]
[1735062218992,1.5,98774.0,98767.0,0.050654]
[1735062219199,0.050651,98773.0,98767.0,0.050654]
[1735062220501,1.5,98774.0,98772.0,0.050651]
[1735062220705,1.5,98774.0,98766.0,0.050654]
[1735062221109,1.5,98774.0,98767.0,0.001]
[1735062221407,1.5,98774.0,98770.0,0.050652]
[1735062222504,1.5,98774.0,98767.0,0.001]
[1735062222802,0.050655,98765.0,98751.0,0.36212]
[1735062223000,0.118615,98761.0,98751.0,0.3608]
[1735062223203,0.0748,98764.0,98751.0,0.3608]
[1735062223409,0.0748,98764.0,98762.0,0.050656]
[1735062223901,1.5,98763.0,98762.0,0.050656]
[1735062224511,1.5,98763.0,98762.0,0.051656]
[1735062225902,0.001,98763.0,98762.0,0.051656]
[1735062226097,0.01193817,98763.0,98762.0,0.051656]
[1735062226308,0.001,98763.0,98762.0,0.051656]
[1735062226509,0.001,98763.0,98762.0,0.052656]
[1735062231912,0.001,98763.0,98762.0,0.051656]
[1735062232220,0.001,98763.0,98762.0,0.052656]
[1735062232517,0.01051021,98770.0,98769.0,0.050653]
[1735062232715,0.050651,98773.0,98769.0,0.050653]
[1735062232908,0.050652,98771.0,98769.0,0.050653]
[1735062233108,0.050652,98770.0,98769.0,0.050653]
[1735062233720,0.001,98773.0,98769.0,0.001]
[1735062233910,0.051651,98773.0,98771.0,0.050652]
[1735062234513,0.050651,98772.0,98771.0,0.050652]
[1735062235217,0.050651,98772.0,98771.0,0.051652]
[1735062236522,0.051651,98772.0,98771.0,0.052652]
[1735062237517,0.001,98772.0,98771.0,0.052652]
[1735062239515,0.00294338,98772.0,98771.0,0.052652]
[1735062240622,0.00325356,98772.0,98771.0,0.052652]
[1735062241622,0.15453093,98772.0,98771.0,0.052652]
[1735062243035,0.05250704,98772.0,98771.0,0.052652]
[1735062243326,0.050656,98763.0,98758.0,0.050658]
[1735062243525,0.0781,98762.0,98748.0,0.2432808]
[1735062243718,0.00225356,98758.0,98757.0,0.050659]
[1735062244022,0.050659,98757.0,98754.0,0.05066]
[1735062244230,0.0742,98756.0,98754.0,0.05066]
[1735062244424,0.12486,98756.0,98754.0,0.05066]
[1735062244722,0.00225356,98755.0,98754.0,0.05066]
[1735062245325,0.00225356,98755.0,98754.0,0.05166]
[1735062245822,0.05150704,98755.0,98754.0,0.05166]
[1735062246327,0.05350704,98755.0,98754.0,0.05166]
[1735062247031,0.15601849,98755.0,98754.0,0.05166]
[1735062248720,0.15601849,98755.0,98754.0,0.001]
[1735062248920,0.20667849,98755.0,98754.0,0.001]
[1735062249424,0.05491356,98755.0,98754.0,0.001]
[1735062249818,0.05491356,98755.0,98754.0,0.051661]
[1735062252232,0.41571356,98755.0,98754.0,0.001]
[1735062253017,1.91571356,98755.0,98754.0,0.001]
[1735062253634,1.96498206,98755.0,98754.0,0.001]
[1735062253827,1.96498206,98755.0,98744.0,0.050665]
[1735062253828,0.050661,98754.0,98738.0,0.59299714]
[1735062254128,0.050667,98742.0,98739.0,0.050668]
[1735062254327,0.0772,98741.0,98739.0,0.050668]
[1735062254827,0.00225356,98740.0,98739.0,0.050668]
[1735062256146,0.00225356,98740.0,98738.0,0.3608]
[1735062256147,0.050668,98739.0,98738.0,0.3608]
[1735062256331,0.199868,98739.0,98738.0,0.3608]
[1735062256531,0.05067,98735.0,98734.0,0.18152814]
[1735062256725,0.1492,98739.0,98734.0,0.18152814]
[1735062256929,0.1492,98739.0,98738.0,0.04841544]
[1735062257430,0.1597791,98739.0,98738.0,0.04841544]
[1735062258034,0.1607791,98739.0,98738.0,0.04841544]
[1735062258230,0.1637791,98739.0,98738.0,0.04941544]
[1735062258626,0.1597791,98739.0,98738.0,0.04841544]
[1735062258937,0.1647791,98739.0,98738.0,0.04941544]
[1735062260735,0.1687791,98739.0,98738.0,0.04941544]
[1735062265337,0.2194471,98739.0,98738.0,0.001]
[1735062266047,1.7194471,98739.0,98738.0,0.001]
[1735062266436,1.5702471,98739.0,98738.0,0.001]
[1735062266632,0.0195791,98739.0,98738.0,0.051669]
[1735062266939,0.0195791,98739.0,98738.0,0.412469]
[1735062266940,0.009,98739.0,98738.0,0.412469]
[1735062269442,0.002,98739.0,98738.0,0.411469]
[1735062269650,0.002,98739.0,98738.0,0.417469]
[1735062270046,0.050663,98749.0,98738.0,0.411469]
[1735062270348,0.0909026,98754.0,98753.0,0.050661]
[1735062270537,0.0909026,98754.0,98753.0,0.411461]
[1735062271341,0.05066,98755.0,98754.0,0.050661]
[1735062271547,0.0909026,98762.0,98753.0,0.3608]
[1735062271747,0.002,98754.0,98753.0,0.411461]
[1735062272853,0.007,98754.0,98753.0,0.412461]
[1735062274054,0.005,98754.0,98753.0,0.412461]
[1735062275449,0.007,98754.0,98753.0,0.412461]
[1735062276553,0.41846,98754.0,98753.0,0.001]
[1735062277150,1.91846,98754.0,98753.0,0.001]
[1735062277845,1.507,98754.0,98753.0,0.051661]
[1735062278049,1.51762852,98754.0,98753.0,0.051661]
[1735062279763,1.51762852,98754.0,98753.0,0.001]
[1735062279956,1.56828952,98754.0,98753.0,0.001]
[1735062280255,1.92908952,98754.0,98753.0,0.001]
[1735062281562,2.03035175,98754.0,98753.0,0.001]
[1735062282261,0.050667,98743.0,98737.0,0.050669]
[1735062282467,0.3608,98744.0,98737.0,0.050669]
[1735062282760,0.050667,98742.0,98740.0,0.050668]
[1735062282961,0.2158,98753.0,98736.0,0.3608]
[1735062282962,0.050664,98747.0,98736.0,0.3608]
[1735062283159,0.050664,98747.0,98737.0,0.118615]
[1735062283459,0.004,98743.0,98742.0,0.050667]
[1735062283862,0.15166472,98746.0,98745.0,0.050665]
[1735062285262,0.002,98746.0,98745.0,0.050665]
[1735062286263,0.002,98746.0,98745.0,0.051665]
[1735062286264,0.007,98746.0,98745.0,0.051665]
[1735062293769,0.057665,98746.0,98745.0,0.001]
[1735062293969,0.418465,98746.0,98745.0,0.001]
[1735062294669,1.918465,98746.0,98745.0,0.001]
[1735062297168,0.418465,98746.0,98745.0,0.001]
[1735062298475,1.918465,98746.0,98745.0,0.001]
[1735062298859,0.050672,98732.0,98731.0,0.18116799]
[1735062299062,0.411472,98732.0,98731.0,0.18116799]
[1735062299763,0.3608,98732.0,98718.0,0.18268717]
[1735062299968,0.2111,98731.0,98719.0,0.050679]
[1735062300165,0.050677,98723.0,98719.0,0.050679]
[1735062300374,0.050679,98719.0,98718.0,0.18396717]
[1735062300563,0.118615,98730.0,98718.0,0.18116799]
[1735062300764,0.001,98732.0,98718.0,0.18416799]
[1735062301067,0.001,98732.0,98731.0,0.050672]
[1735062301271,0.001,98732.0,98731.0,0.411472]
[1735062301961,0.18056179,98737.0,98736.0,0.05067]
[1735062302575,0.18056179,98737.0,98732.0,0.0709]
[1735062302576,0.09090279,98742.0,98732.0,0.0709]
[1735062303072,0.20951779,98742.0,98732.0,0.0709]
[1735062303277,0.20951779,98742.0,98737.0,0.050669]
[1735062303566,0.05067,98737.0,98732.0,0.050672]
[1735062303773,0.57231779,98742.0,98731.0,0.3608]
[1735062304273,0.57231779,98742.0,98741.0,0.050667]
[1735062304274,0.17387072,98742.0,98741.0,0.050667]
[1735062304462,0.17487072,98742.0,98741.0,0.050667]
[1735062304770,0.12420372,98742.0,98741.0,0.050667]
[1735062305369,0.12520372,98742.0,98741.0,0.050667]
[1735062305669,0.004,98742.0,98741.0,0.050667]
[1735062305876,0.12120372,98745.0,98744.0,0.050666]
[1735062307065,0.02458597,98745.0,98744.0,0.03342307]
[1735062307468,0.02458491,98745.0,98744.0,0.03342307]
[1735062307764,0.07524991,98745.0,98744.0,0.001]
[1735062308076,0.06381304,98745.0,98744.0,0.001]
[1735062308268,0.06581304,98745.0,98744.0,0.001]
[1735062308677,0.13541304,98745.0,98744.0,0.001]
[1735062308863,1.63541304,98745.0,98744.0,0.001]
[1735062309069,1.99621304,98745.0,98744.0,0.001]
[1735062310574,1.99604542,98745.0,98744.0,0.001]
[1735062311779,2.00640177,98745.0,98744.0,0.001]
[1735062312388,1.99942135,98745.0,98744.0,0.001]
[1735062312681,2.00640088,98745.0,98744.0,0.001]
[1735062313483,2.00639804,98745.0,98744.0,0.001]
[1735062313982,2.00639804,98745.0,98744.0,8.041e-05]
[1735062315682,0.050674,98729.0,98719.0,0.050679]
[1735062315884,0.41845069,98729.0,98713.0,0.36165]
[1735062316082,0.41845069,98729.0,98722.0,0.050677]
[1735062316289,1.91845069,98729.0,98722.0,0.050677]
[1735062316578,1.91844033,98729.0,98722.0,0.050677]
[1735062316986,1.96771955,98729.0,98728.0,0.001]
[1735062317378,2.11001955,98729.0,98728.0,0.001]
[1735062317884,0.050676,98724.0,98718.0,0.050679]
[1735062318084,0.00696633,98723.0,98719.0,0.050678]
[1735062318384,0.00696633,98722.0,98719.0,0.050678]
[1735062318582,0.00696633,98721.0,98719.0,0.050678]
[1735062318787,0.118615,98728.0,98719.0,0.050678]
[1735062318788,0.00696633,98720.0,98719.0,0.050678]
[1735062319492,0.00696809,98720.0,98719.0,0.050678]
[1735062320781,0.00696809,98720.0,98719.0,0.051678]
[1735062321185,0.00696809,98720.0,98719.0,0.412478]
[1735062321786,0.00696809,98720.0,98719.0,0.051678]
[1735062321990,0.00697603,98720.0,98719.0,0.412479]
[1735062322490,0.00697827,98720.0,98719.0,0.412479]
[1735062327304,0.05765627,98720.0,98719.0,0.412479]
[1735062328800,0.00697827,98720.0,98719.0,0.412479]
[1735062330506,0.00697827,98720.0,98719.0,0.3618]
[1735062330995,0.00697202,98720.0,98719.0,0.3618]
[1735062331497,0.00697409,98720.0,98719.0,0.3618]
[1735062332098,0.05765209,98720.0,98719.0,0.3618]
[1735062334509,0.00696961,98720.0,98719.0,0.412479]
[1735062334899,0.09095909,98729.0,98728.0,0.050674]
[1735062335098,0.09095909,98729.0,98728.0,0.411474]
[1735062335304,0.12127878,98735.0,98734.0,0.050671]
[1735062335607,0.12127878,98735.0,98734.0,0.411471]
[1735062336415,0.050669,98737.0,98736.0,0.05067]
[1735062336795,0.002,98735.0,98734.0,0.3618]
[1735062336996,0.05267,98735.0,98734.0,0.3618]
[1735062337199,0.05267,98735.0,98734.0,0.001]
[1735062337427,0.05267,98735.0,98734.0,0.303501]
[1735062338112,0.05267,98735.0,98734.0,0.2781581]
[1735062338613,1.55067,98735.0,98734.0,0.2781581]
[1735062338808,1.91147,98735.0,98728.0,0.00132]
[1735062339013,0.050681,98714.0,98713.0,0.3630012]
[1735062339708,1.550681,98714.0,98713.0,0.3630012]
[1735062340013,1.550681,98714.0,98701.0,0.0717]
[1735062340205,0.050688,98701.0,98700.0,0.118615]
[1735062340514,0.05069,98697.0,98694.0,0.411491]
[1735062340708,0.05069,98697.0,98696.0,0.05069]
[1735062342004,0.05169,98697.0,98696.0,0.05969]
[1735062342710,0.001,98697.0,98696.0,0.06569]
[1735062342912,0.001,98697.0,98696.0,0.42649]
[1735062343500,0.12127878,98720.0,98696.0,0.42649]
[1735062343501,0.12127878,98720.0,98696.0,0.6758]
[1735062343818,0.050678,98720.0,98719.0,0.3608]
[1735062344216,0.050678,98720.0,98719.0,0.411479]
[1735062344909,0.050678,98720.0,98719.0,0.3608]
[1735062345510,0.051678,98720.0,98719.0,0.3608]
[1735062345907,0.050678,98720.0,98719.0,0.3608]
[1735062346116,0.050678,98720.0,98719.0,0.3618]
[1735062346921,0.05734071,98720.0,98719.0,0.3618]
[1735062347308,0.05734071,98720.0,98719.0,0.412479]
[1735062347616,0.00666271,98720.0,98719.0,0.773279]
[1735062347811,0.12127878,98738.0,98719.0,0.773279]
[1735062348006,0.17194778,98738.0,98737.0,0.3608]
[1735062348207,0.17194778,98738.0,98737.0,0.411469]
[1735062348818,0.050669,98738.0,98737.0,0.411469]
[1735062349014,0.057669,98738.0,98737.0,0.412469]
[1735062351015,0.057669,98738.0,98737.0,0.42277911]
[1735062351424,0.059669,98738.0,98737.0,0.42277911]
[1735062358323,0.050663,98750.0,98737.0,0.72277911]
[1735062358523,0.050663,98750.0,98749.0,0.411463]
[1735062359827,0.057663,98750.0,98749.0,0.412463]
[1735062361022,0.007,98750.0,98749.0,0.412463]
[1735062361324,0.001,98750.0,98749.0,0.412463]
[1735062363729,0.001,98750.0,98749.0,0.42283327]
[1735062364828,0.001,98750.0,98749.0,0.37217027]
[1735062365021,0.051663,98750.0,98749.0,0.3618]
[1735062365938,0.001,98750.0,98749.0,0.412463]
[1735062369720,0.0736,98765.0,98764.0,0.050656]
[1735062369927,0.0716,98785.0,98784.0,0.050646]
[1735062370235,0.1477,98785.0,98784.0,0.050646]
[1735062371633,0.1477,98785.0,98773.0,0.3608]
[1735062371823,0.050649,98777.0,98766.0,0.050654]
[1735062372133,0.050646,98782.0,98772.0,0.3608]
[1735062372332,0.411446,98782.0,98772.0,0.3608]
[1735062372535,0.3608,98782.0,98781.0,0.050647]
[1735062373033,1.8608,98782.0,98781.0,0.050647]
[1735062374935,1.8678,98782.0,98781.0,0.051647]
[1735062375331,1.8658,98782.0,98781.0,0.050647]
[1735062375528,1.8728,98782.0,98781.0,0.051647]
[1735062376639,1.512,98782.0,98781.0,0.051647]
[1735062376938,0.012,98782.0,98781.0,0.051647]
[1735062377140,0.16263855,98782.0,98781.0,0.051647]
[1735062378338,0.004,98782.0,98781.0,0.050647]
[1735062378545,0.011,98782.0,98781.0,0.051647]
[1735062378932,0.004,98782.0,98781.0,0.051647]
[1735062379132,0.011,98782.0,98781.0,0.051647]
[1735062380540,0.01,98782.0,98781.0,0.051647]
[1735062380842,0.12717197,98782.0,98781.0,0.051647]
[1735062381043,0.12117197,98782.0,98781.0,0.050647]
[1735062381743,0.13117197,98782.0,98781.0,0.051647]
[1735062383344,0.12717197,98782.0,98781.0,0.051647]
[1735062383548,0.006,98782.0,98781.0,0.051647]
[1735062383952,0.0724,98784.0,98783.0,0.050646]
[1735062384839,0.0724,98784.0,98777.0,0.050649]
[1735062385043,0.0724,98784.0,98783.0,0.050646]
[1735062385044,0.0764,98784.0,98783.0,0.050646]
[1735062386134,0.0784,98784.0,98783.0,0.050646]
[1735062386538,0.006,98784.0,98783.0,0.050646]
[1735062387452,0.12117197,98792.0,98790.0,0.050642]
[1735062387646,0.13169463,98792.0,98790.0,0.411442]
[1735062387941,0.01052266,98792.0,98790.0,0.411442]
[1735062388145,0.3608,98798.0,98790.0,0.411442]
[1735062388351,0.050642,98790.0,98783.0,0.01044833]
[1735062388648,0.050642,98790.0,98786.0,0.050644]
[1735062389444,0.050642,98790.0,98780.0,0.3608]
[1735062389645,0.050642,98790.0,98787.0,0.050644]
[1735062389841,0.050642,98790.0,98788.0,0.3608]
[1735062390045,0.050643,98788.0,98777.0,0.01020051]
[1735062390343,0.050643,98788.0,98784.0,0.050645]
[1735062390541,0.001,98790.0,98784.0,0.050645]
[1735062390743,0.050644,98787.0,98784.0,0.050645]
[1735062391643,0.050644,98787.0,98782.0,0.3608]
[1735062391848,0.050644,98787.0,98785.0,0.050645]
[1735062392349,0.052644,98787.0,98785.0,0.050645]
[1735062392845,0.052644,98787.0,98782.0,0.3608]
[1735062392846,0.002,98787.0,98786.0,0.050644]
[1735062394047,0.003,98787.0,98786.0,0.050644]
[1735062394957,0.001,98787.0,98786.0,0.050644]
[1735062395251,0.002,98787.0,98786.0,0.050644]
[1735062395852,0.004,98787.0,98786.0,0.050644]
[1735062396446,0.15563855,98787.0,98786.0,0.050644]
[1735062397643,0.06337536,98787.0,98786.0,0.050644]
[1735062398049,0.06337536,98787.0,98786.0,0.06088551]
[1735062398855,0.06037536,98787.0,98786.0,0.06088551]
[1735062399154,0.01412943,98787.0,98786.0,0.06088551]
[1735062402253,0.050646,98783.0,98782.0,0.60323063]
[1735062402457,0.050646,98783.0,98782.0,0.24147063]
[1735062404654,0.051646,98783.0,98782.0,0.24147063]
[1735062404861,0.050649,98776.0,98775.0,0.05065]
[1735062405855,0.3608,98782.0,98771.0,0.01049756]
[1735062406051,0.04925166,98776.0,98768.0,0.050653]
[1735062406250,0.04925166,98776.0,98759.0,0.24147063]
[1735062406251,0.050654,98768.0,98759.0,0.24147063]
[1735062406461,0.3608,98761.0,98759.0,0.24147063]
[1735062406761,0.050658,98760.0,98759.0,0.24147063]
[1735062406952,1.550658,98760.0,98759.0,0.1844566]
[1735062407262,0.050664,98749.0,98746.0,0.06104841]
[1735062408355,0.050664,98749.0,98746.0,0.07004841]
[1735062408356,0.20327929,98749.0,98746.0,0.07004841]
[1735062408862,0.006949,98748.0,98746.0,0.07004841]
[1735062409057,0.006949,98747.0,98746.0,0.07004841]
[1735062409559,0.006949,98747.0,98746.0,0.07404841]
[1735062409763,0.20327929,98749.0,98747.0,0.050664]
[1735062409947,0.00695387,98748.0,98746.0,0.02338341]
[1735062410152,0.001,98749.0,98748.0,0.050664]
[1735062410457,0.00795137,98749.0,98748.0,0.050664]
[1735062410652,0.00695137,98749.0,98748.0,0.050664]
[1735062411557,0.00795137,98749.0,98748.0,0.058664]
[1735062412350,0.00795137,98749.0,98748.0,0.062664]
[1735062412865,0.00794519,98749.0,98748.0,0.062664]
[1735062414762,0.05860919,98749.0,98748.0,0.012]
[1735062415063,0.41940919,98749.0,98748.0,0.012]
[1735062415463,1.91940919,98749.0,98748.0,0.012]
[1735062415766,1.91940919,98749.0,98735.0,0.30108185]
[1735062415767,0.05067,98736.0,98735.0,0.30108185]
[1735062415966,0.05761299,98736.0,98735.0,0.30108185]
[1735062416855,0.05761299,98736.0,98731.0,0.050673]
[1735062416856,0.050671,98734.0,98731.0,0.050673]
[1735062417054,0.00694299,98733.0,98732.0,0.050672]
[1735062418059,0.00794299,98733.0,98732.0,0.050672]
[1735062418458,0.00894299,98733.0,98732.0,0.050672]
[1735062418968,0.00893472,98733.0,98732.0,0.050672]
[1735062419556,0.00894,98733.0,98732.0,0.050672]
[1735062421360,0.00893388,98733.0,98732.0,0.050672]
[1735062421666,0.00693388,98733.0,98732.0,0.056672]
[1735062422251,0.00693388,98733.0,98732.0,0.053672]
[1735062422558,0.00693388,98733.0,98732.0,0.416472]
[1735062424155,0.0105406,98747.0,98732.0,0.416472]
[1735062424362,0.00692748,98746.0,98744.0,0.3608]
[1735062424556,0.00692794,98745.0,98744.0,0.3608]
[1735062424861,0.00692794,98745.0,98744.0,0.411466]
[1735062426067,0.00892794,98745.0,98744.0,0.411466]
[1735062426959,0.073,98769.0,98745.0,0.050665]
[1735062427259,0.073,98769.0,98768.0,0.050654]
[1735062428870,0.076,98769.0,98768.0,0.050654]
[1735062429254,0.076,98769.0,98768.0,0.051654]
[1735062429458,0.082,98769.0,98768.0,0.051654]
[1735062431454,1.632653,98769.0,98768.0,0.001]